Cogmind - Beta 16 @@@ ROGUE MODE // 2026.01.01 @ 13:00:02 Player: Compilatron Result: Destroyed by G-50 Soldier with Heavy Laser Performance ------------- Evolutions (5) 2500 Regions Visited (7) 1400 Robots Destroyed (78) 390 Value Destroyed (1913) 1913 Prototype IDs (10) 200 Alien Tech Used (0) 0 Bonus (40) 40 TOTAL SCORE: 6443 Bonus ------- Follower Combat Kills 40 Cogmind --------- Core Integrity 0/1000 Matter 99/300 Energy 100/100 System Corruption 3% Temperature Cool (9) Movement Core (200) Ox3 Location -5/Factory Parts ------- > --- POWER (2) -------- (None) > --- PROPULSION (6) --- (None) > --- UTILITY (7) ------ Medium Storage Unit Improved Signal Interpreter Experimental Targeting Computer > --- WEAPON (2) ------- (None) > --- INVENTORY (10) --- Fission Core Advanced Visual Processing Unit Advanced Terrain Scanner Advanced ECM Suite Improved Medium Armor Plating Layered Light Armor Plating Improved Shield Generator Advanced System Restoration Module Peak State ------------ > --- POWER ------------ Angular Momentum Engine > --- PROPULSION ------- Surge Thruster Xenon Bombardment Thruster Cooled VTOL Module Field Propulsion Drive > --- UTILITY ---------- Medium Storage Unit Improved Signal Interpreter Experimental Targeting Computer Transmission Jammer Improved Reaction Control System Improved Light Armor Plating Improved System Shield > --- WEAPON ----------- Gatling Laser KE Penetrator > --- INVENTORY -------- Fission Core Advanced Visual Processing Unit Advanced ECM Suite Improved Medium Armor Plating Layered Light Armor Plating Improved Shield Generator Advanced System Restoration Module Gauss Cannon [Rating: 63] Favorites ----------- Power Light Ion Engine Engine Light Ion Engine Power Core Micro Nuclear Core Propulsion Armored Treads Treads Armored Treads Wheel Compact Wheel Hover Unit Improved Hover Unit Flight Unit Xenon Bombardment Thruster Utility Signal Interpreter Device Sensor Array Storage Medium Storage Unit Processor Signal Interpreter Hackware Improved System Shield Protection Improved Medium Armor Plating Weapon Improved Assault Rifle Energy Gun Heavy Particle Gun Energy Cannon Heavy Ion Cannon Ballistic Gun Improved Assault Rifle Ballistic Cannon Gauss Cannon Build | -11 -10 -9 -8 -8 -7 -6 -5 ------- Run | Yrd Mat Mat Mat Sto Fac Fac Fac Slots Evolved 10 | . . 2 2 . 2 2 2 Power 1 | . . . . . . . 1 Propulsion 4 | . . 1 1 . 2 . . Utility 5 | . . 1 1 . . 2 1 Weapon . | . . . . . . . . Parts Attached 81 | 7 7 18 13 10 14 9 3 Power 13 | 1 2 2 2 2 1 3 . Engine 10 | 1 2 2 1 2 . 2 . Core 3 | . . . 1 . 1 1 . Reactor . | . . . . . . . . Propulsion 28 | 2 1 7 7 4 6 . 1 Treads 10 | 2 . 4 4 . . . . Leg . | . . . . . . . . Wheel 1 | . 1 . . . . . . Hover 3 | . . 3 . . . . . Flight 14 | . . . 3 4 6 . 1 Utility 21 | 2 2 2 3 3 3 5 1 Device 7 | 1 . 1 1 . 1 2 1 Storage 3 | 1 2 . . . . . . Processor 3 | . . 1 . 1 1 . . Hackware 3 | . . . . . . 3 . Protection 5 | . . . 2 2 1 . . Artifact . | . . . . . . . . Weapon 19 | 2 2 7 1 1 4 1 1 Energy Gun 4 | . 1 1 1 . 1 . . Energy Cannon 2 | . . 1 . . . 1 . Ballistic Gun 12 | 2 1 5 . 1 2 . 1 Ballistic Cannon 1 | . . . . . 1 . . Launcher . | . . . . . . . . Special Weapon . | . . . . . . . . Impact Weapon . | . . . . . . . . Slashing Weapon . | . . . . . . . . Piercing Weapon . | . . . . . . . . Special Melee Weapon . | . . . . . . . . Unidentified Prototypes 8 | . . 2 2 3 1 . . Parts Lost 27 | . 7 1 . 3 . 5 11 Power 5 | . 2 1 . . . 1 1 Propulsion 9 | . 2 . . 1 . 2 4 Utility 9 | . 1 . . 2 . 2 4 Weapon 4 | . 2 . . . . . 2 Highest Loss Streak 11 | . 3 1 . 1 . 5 11 To Critical Strikes . | . . . . . . . . Average Backups 11 | 4 10 14 13 9 9 9 8 Power . | 1 1 . . . . 1 1 Propulsion 3 | 1 3 3 6 4 1 . . Utility 4 | . 3 4 3 2 5 5 6 Weapon 2 | 1 1 5 3 1 2 1 1 Tool/Special . | . . . . . . . . Unused Backups 36 | . 1 13 8 2 5 . 7 Power . | . . . . . . . . Propulsion 6 | . . 3 2 . 1 . . Utility 15 | . . 3 3 2 . . 7 Weapon 14 | . 1 6 3 . 4 . . Tool/Special 1 | . . 1 . . . . . Average Slot Usage (%) 93 | . 87 94 99 99 99 91 68 Engine 6 | . 10 6 8 4 . 4 4 Core 1 | . . . . 4 6 . . Treads 12 | . 12 14 26 18 . . . Wheel 7 | . 14 10 9 6 . . . Hover 1 | . . 7 . . . . . Flight 12 | . . . . 11 45 38 19 Device 7 | . 7 10 8 3 3 11 7 Storage 9 | . 14 11 9 9 7 6 5 Processor 10 | . . 10 9 15 15 13 11 Protection 3 | . . . 9 7 3 3 4 Energy Gun 4 | . 1 1 9 9 10 1 3 Ballistic Gun 12 | . 26 19 9 9 1 . 3 Peak Build Rating 63 | 7 8 19 31 38 52 59 63 Average Rating 28 | 4 6 14 27 33 50 54 53 On Entrance 23 | . 7 6 19 31 38 52 34 Avg Prop Armor Cover (%) 17 | . 14 17 15 24 . 16 . Naked Turns . | . . . . . . . . Heaviest Build 41 | 13 26 34 41 30 31 36 38 Greatest Support 60 | 40 20 40 60 60 32 35 21 Greatest Overweight (x) 10 | 1 1 2 2 1 . 10 3 Average Overweight (x) . | . . 1 1 . . . . Largest Inventory Capacity 15 | 8 15 15 15 10 10 10 10 Average Capacity 12 | 7 12 15 13 10 10 10 10 Most Carried 15 | 8 15 15 15 10 10 10 10 Average Carried 11 | 4 10 14 13 9 9 9 8 Final Capacity 15 | 8 15 15 10 10 10 10 10 Final Carried 15 | 4 13 15 10 10 9 10 8 Class Distribution -------------------- 80% | Mutant 14% | Sprinter 3% | Commander-Mutant Dominant Class ---------------- Mutant | -10/Materials Mutant | -9/Materials Mutant | -8/Materials Mutant | -8/Storage Sprinter | -7/Factory Mutant | -6/Factory Mutant | -5/Factory Resources | -11 -10 -9 -8 -8 -7 -6 -5 ----------- Run | Yrd Mat Mat Mat Sto Fac Fac Fac Matter Collected 1881 | 240 184 597 329 311 25 173 22 Remotely . | . . . . . . . . Salvage Created 2525 | 13 353 780 262 768 25 236 88 Parts 179 | 4 36 57 22 45 2 7 6 Haulers Intercepted 8 | . 1 2 1 3 . 1 . Recyclers Shooed . | . . . . . . . . Parts Field Recycled . | . . . . . . . . Retrieved Matter . | . . . . . . . . Parts Self-Destructed . | . . . . . . . . Prevented . | . . . . . . . . Parts Restored . | . . . . . . . . Kills | -11 -10 -9 -8 -8 -7 -6 -5 ------- Run | Yrd Mat Mat Mat Sto Fac Fac Fac Combat Hostiles Destroyed 66 | . 13 23 11 13 . 2 4 Guns 63 | . 13 23 11 13 . . 3 Cannons 3 | . . . . . . 2 1 Classes Destroyed 8 | 1 3 2 1 . . . 1 Tunneler 1 | 1 . . . . . . . Hauler 8 | . 1 2 1 3 . 1 . Watcher 3 | . . 1 . 1 1 . . Swarmer 36 | . 9 14 8 2 . . 3 Grunt 13 | . 4 4 . 5 . . . Duelist 1 | . . . . . . . 1 Sentry 13 | . . 5 2 5 . 1 . Hunter 3 | . . . 1 1 . 1 . Best Kill Streak 5 | 1 3 3 5 3 1 2 4 Combat Bots Only 5 | . 3 3 5 2 . 2 4 Max Kills in Single Turn 2 | 1 2 2 2 1 1 1 1 Gunslinging 1 | . 1 1 . . . . . Exploded . | . . . . . . . . Melee . | . . . . . . . . Uniques/NPCs Destroyed . | . . . . . . . . Combat | -11 -10 -9 -8 -8 -7 -6 -5 -------- Run | Yrd Mat Mat Mat Sto Fac Fac Fac Hostile Shots Fired 555 | . 110 110 64 73 4 73 121 Missed 165 | . 27 33 12 25 2 36 30 Hits 390 | . 83 77 52 48 2 37 91 Melee 15 | . . . . . . 2 13 Projectile 375 | . 83 77 52 48 2 35 78 Critical Strikes 8 | . . 1 1 1 . 1 4 Damage Taken 5286 | . 832 795 528 701 13 543 1874 Core 1539 | . 213 179 65 43 . 35 1004 Absorbed by Shields . | . . . . . . . . Regen/Repaired (Parts) 213 | . . 149 9 . . 55 . Core Remaining (%) 74 | 100 14 55 . 80 100 95 . Volleys Fired 273 | 3 55 70 28 58 9 28 22 Largest 2 | 2 2 2 2 2 2 1 2 Hottest 113 | 40 60 46 88 78 83 65 113 Shots Fired 473 | 6 104 129 56 116 11 28 23 Gun 427 | 6 104 129 56 116 5 . 11 Cannon 46 | . . . . . 6 28 12 Launcher . | . . . . . . . . Special . | . . . . . . . . Kinetic 343 | 6 100 129 28 58 8 1 13 Thermal 126 | . . . 28 58 3 27 10 Explosive . | . . . . . . . . Electromagnetic 4 | . 4 . . . . . . Robot Hit Streak 24 | 1 7 20 22 24 10 15 20 Robot Miss Streak 6 | 3 6 3 5 2 . 1 4 Penetration Max 1 | . . . . . . . 1 Secondary Targets 9 | . 2 4 2 1 . . . Max Gunslinging Chain 1 | . 1 1 1 1 . . . Shots Hit Robots 300 | 2 52 86 35 82 3 19 21 Core Hits 140 | 2 25 33 32 31 2 7 8 Critical Kills 1 | . 1 . . . . . . Critical Parts Destroyed . | . . . . . . . . Critical Strikes 9 | . 1 . 1 4 . . 3 Burn 5 | . . . 1 4 . . . Destroy 1 | . 1 . . . . . . Blast 3 | . . . . . . . 3 Melee Attacks . | . . . . . . . . Impact . | . . . . . . . . Slashing . | . . . . . . . . Piercing . | . . . . . . . . Sneak Attacks . | . . . . . . . . Combat Hostiles . | . . . . . . . . Follow-up Attacks . | . . . . . . . . Damage Inflicted 5134 | 15 459 1327 566 1420 264 545 538 Guns 4036 | 15 459 1327 556 1420 51 . 208 Cannons 874 | . . . . . . 545 329 Explosions 213 | . . . . . 213 . . Melee . | . . . . . . . . Ramming 11 | . . . 10 . . . 1 Kinetic 3012 | 15 411 1327 250 641 17 . 351 Thermal 1850 | . . . 306 779 34 545 186 Explosive 213 | . . . . . 213 . . Electromagnetic 48 | . 48 . . . . . . Impact . | . . . . . . . . Slashing . | . . . . . . . . Piercing . | . . . . . . . . Highest Corruption 3 | . . . . . . 1 3 Average Corruption 1 | . . . . . . 1 2 Corruption Purged . | . . . . . . . . Corruption Blocked . | . . . . . . . . Effects 3 | . . . . . . 3 . Message Errors 2 | . . . . . . 2 . Heat Flow Errors 1 | . . . . . . 1 . Overload Shots . | . . . . . . . . Overflow Damage 21 | . . . . . 21 . . Projectiles . | . . . . . . . . Explosions 21 | . . . . . 21 . . Melee . | . . . . . . . . Knockbacks 6 | . . . . . . . 6 Impact . | . . . . . . . . Kinetic 6 | . . . . . . . 6 Secondary . | . . . . . . . . Self-Inflicted Damage 5 | . . . 5 . . . . Shots . | . . . . . . . . Rammed 3 | . . . 1 . . . 2 Targets Rammed 3 | . . . 1 . . . 2 Kicked . | . . . . . . . . Crushed . | . . . . . . . . Highest Temperature 256 | . 32 19 105 255 256 230 86 Average Temperature 63 | . 9 5 39 51 72 93 53 Received Heat Transfer 882 | . 216 183 18 306 9 24 126 Effects 3 | . . . . 2 . 1 . Energy Bleed 2 | . . . . 2 . . . Interference 1 | . . . . . . 1 . Siege Activations . | . . . . . . . . Martial Activations . | . . . . . . . . Shielding Activations . | . . . . . . . . Robots Disrupted . | . . . . . . . . Combat Hostiles . | . . . . . . . . Robots Corrupted . | . . . . . . . . Combat Hostiles . | . . . . . . . . Parts Fried . | . . . . . . . . Impact Corruptions . | . . . . . . . . Robots Melted . | . . . . . . . . Combat Hostiles . | . . . . . . . . Parts Melted 4 | . . . . 2 . 2 . Heat Transferred 3566 | . . . 514 1813 74 740 425 Parts Sabotaged . | . . . . . . . . Parts Stolen . | . . . . . . . . Parts Stripped . | . . . . . . . . Power Chain Reactions . | . . . . . . . . Alert | -11 -10 -9 -8 -8 -7 -6 -5 ------- Run | Yrd Mat Mat Mat Sto Fac Fac Fac Maximum Alert Level 1 | . . 1 . . 1 . . Low Security (%) 87 | 100 100 61 100 100 72 100 100 Level 1 12 | . . 38 . . 27 . . Level 2 . | . . . . . . . . Level 3 . | . . . . . . . . Level 4 . | . . . . . . . . Level 5 . | . . . . . . . . High Security . | . . . . . . . . Max Security . | . . . . . . . . Peak Influence 285 | 5 82 285 111 184 268 147 85 Initial 116 | . . 5 97 39 49 116 40 Average 77 | . 33 145 52 56 105 62 14 Influence Increases 2916 | 5 394 719 320 618 447 263 150 Destroy 0b10 Robot/C 1420 | . 260 460 220 360 . 40 80 Destroy 0b10 Robot/NC 60 | 5 5 15 5 20 5 5 . Destroy Leader 322 | . 42 86 52 108 2 22 10 Allied During Kill 37 | . . . . 37 . . . Successful Hack 233 | . 27 34 12 17 114 29 . Disable Machine 90 | . . . 15 30 45 . . Destroy Structure 34 | . . 4 1 1 26 2 . Partial Spotted 165 | . . . 15 . 105 45 . Lose Combat Pursuer 555 | . 60 120 . 45 150 120 60 Influence Decreases 2891 | 5 381 501 457 602 319 418 208 Entered New Map 423 | . . 8 134 55 61 122 43 Time Decay 2078 | 5 341 473 323 397 238 226 75 Lost Part 220 | . 40 10 . 30 . 50 90 Lost Ally 170 | . . 10 . 120 20 20 . Squads Dispatched 10 | . . . 1 2 4 2 1 Investigation 2 | . . . . . 1 1 . Extermination 4 | . . . . . 2 1 1 Reinforcement 4 | . . . 1 2 1 . . Assault . | . . . . . . . . Garrison . | . . . . . . . . Intercept . | . . . . . . . . Searches Triggered . | . . . . . . . . Construction Impeded . | . . . . . . . . Haulers Reinforced . | . . . . . . . . Active Scanning Responses . | . . . . . . . . Cargo Convoy Interrupts . | . . . . . . . . Stealth | -11 -10 -9 -8 -8 -7 -6 -5 --------- Run | Yrd Mat Mat Mat Sto Fac Fac Fac Distress Signals 14 | . 1 3 4 4 . 2 . Communications Jammed . | . . . . . . . . Distress Signals . | . . . . . . . . Times Spotted 161 | . 30 39 19 21 21 16 15 Peak Tracking Total 12 | . 5 5 6 3 4 12 9 Tactical Retreats 20 | . 3 6 . 3 4 2 2 Traps | -11 -10 -9 -8 -8 -7 -6 -5 ------- Run | Yrd Mat Mat Mat Sto Fac Fac Fac Traps Triggered 8 | . 1 . 2 . 2 2 1 Indirectly . | . . . . . . . . Trap Hack Attempts . | . . . . . . . . Triggered . | . . . . . . . . Disarmed . | . . . . . . . . Reprogrammed . | . . . . . . . . Reused . | . . . . . . . . Traps Extracted . | . . . . . . . . Installed . | . . . . . . . . Triggered . | . . . . . . . . Objects Rigged 2 | . . . . . 2 . . Exploded 2 | . . . . . 2 . . Machines | -11 -10 -9 -8 -8 -7 -6 -5 ---------- Run | Yrd Mat Mat Mat Sto Fac Fac Fac Machines Disabled 6 | . . . 1 2 3 . . Max in Single Turn 1 | . . . 1 1 1 . . Machines Repaired . | . . . . . . . . Machines Dismantled . | . . . . . . . . Machines Sabotaged . | . . . . . . . . Overloaded Fab Kills . | . . . . . . . . Hacking | -11 -10 -9 -8 -8 -7 -6 -5 --------- Run | Yrd Mat Mat Mat Sto Fac Fac Fac Machines Accessed 51 | . 7 10 6 9 12 6 1 Terminals 30 | . 6 5 2 7 7 2 1 Fabricators 3 | . . . . . 3 . . Repair Stations 8 | . . 2 2 1 1 2 . Recycling Units 6 | . 1 1 1 1 1 1 . Scanalyzers 2 | . . 2 . . . . . Garrison Access 2 | . . . 1 . . 1 . Total Hacks 151 | . 20 43 13 27 23 24 1 Successful 99 | . 13 34 8 15 12 17 . Failed 52 | . 7 9 5 12 11 7 1 Catastrophic 4 | . 1 . . . 2 1 . Database Lockouts . | . . . . . . . . Manual 87 | . 18 18 7 8 21 14 1 Terminals 80 | . 17 17 4 19 12 10 1 Fabricators 6 | . . . . . 6 . . Repair Stations 23 | . . 10 4 2 2 5 . Recycling Units 27 | . 3 5 3 6 3 7 . Scanalyzers 11 | . . 11 . . . . . Garrison Access 4 | . . . 2 . . 2 . Terminal Hacks 14 | . 2 2 . 7 1 2 . Robot Schematic 1 | . . . . 1 . . . Prototype ID Bank 1 | . . . . 1 . . . Open Door 2 | . . . . 2 . . . Terminal Index 2 | . 1 . . . 1 . . Fabricator Index 1 | . . . . . . 1 . Scanalyzer Index 1 | . . . . . . 1 . Locate Traps 2 | . . . . 2 . . . Hauler Manifests 2 | . 1 1 . . . . . Zone Layout 2 | . . 1 . 1 . . . Fabricator Hacks . | . . . . . . . . Repair Station Hacks 17 | . . 9 2 1 1 4 . Scan Component 10 | . . 5 1 1 1 2 . Repair 7 | . . 4 1 . . 2 . Recycling Unit Hacks 5 | . 1 1 1 1 . 1 . Report Inventory 1 | . 1 . . . . . . Retrieve Components 4 | . . 1 1 1 . 1 . Scanalyzer 10 | . . 10 . . . . . Insert Component 4 | . . 4 . . . . . Analyze 4 | . . 4 . . . . . Retrieve Study 2 | . . 2 . . . . . Garrison Access Hacks . | . . . . . . . . Unauthorized Hacks 53 | . 10 12 5 6 10 10 . Terminals 35 | . 8 8 2 4 6 7 . Track 6 | . 1 1 1 1 . 2 . Assimilate 4 | . 1 . . . 3 . . Botnet 12 | . 4 2 1 2 1 2 . Detonate 1 | . . . . . 1 . . Operators 6 | . 1 2 . 1 1 1 . Skim 6 | . 1 3 . . . 2 . Fabricators 2 | . . . . . 2 . . Liberate 2 | . . . . . 2 . . Repair Stations 1 | . . . 1 . . . . Mechanics 1 | . . . 1 . . . . Recycling Units 15 | . 2 4 2 2 2 3 . Monitor 2 | . . 1 . . . 1 . Reject 6 | . 1 1 1 1 1 1 . Recyclers 1 | . . 1 . . . . . Mask 6 | . 1 1 1 1 1 1 . Scanalyzers . | . . . . . . . . Garrison Access . | . . . . . . . . Data Cores Recovered . | . . . . . . . . Used . | . . . . . . . . Hacking Detections 39 | . 6 8 5 6 10 4 . Full Trace Events 2 | . . . . . 1 1 . Feedback Events . | . . . . . . . . Feedback Blocked . | . . . . . . . . Robot Schematics Acquired 1 | . . . . 1 . . . Robots Built . | . . . . . . . . Authchips . | . . . . . . . . Time . | . . . . . . . . Total Robot Build Rating . | . . . . . . . . Part Schematics Acquired 4 | . . 4 . . . . . Parts Built . | . . . . . . . . Authchips . | . . . . . . . . Time . | . . . . . . . . Total Part Build Rating . | . . . . . . . . Part Studies Acquired 2 | . . 2 . . . . . Parts Repaired 7 | . . 4 1 . . 2 . Time 199 | . . 110 26 . . 63 . Parts Recycled . | . . . . . . . . Recycled Matter . | . . . . . . . . Retrieved Matter . | . . . . . . . . Retrieved Components 27 | . . 6 8 10 . 3 . Parts Scanalyzed 4 | . . 4 . . . . . Part Schematics Acquired 4 | . . 4 . . . . . Parts Damaged . | . . . . . . . . Bothacking | -11 -10 -9 -8 -8 -7 -6 -5 ------------ Run | Yrd Mat Mat Mat Sto Fac Fac Fac Used RIF Installer . | . . . . . . . . Robots Hacked . | . . . . . . . . Non-combat . | . . . . . . . . Combat . | . . . . . . . . Robot Hacks Applied . | . . . . . . . . Relay Couplers Released . | . . . . . . . . Fabnet Peak Effective % . | . . . . . . . . Robots Rewired 2 | . . . . 1 . 1 . Allies Hacked . | . . . . . . . . Hacks Repelled . | . . . . . . . . Allies | -11 -10 -9 -8 -8 -7 -6 -5 -------- Run | Yrd Mat Mat Mat Sto Fac Fac Fac Total Allies 14 | . 1 . . 10 2 1 . Largest Group 10 | . 1 1 . 10 2 1 . Highest-Rated Group 173 | . 10 10 . 173 52 30 . Highest-Rated Ally 30 | . 10 10 . 29 26 30 . Total Orders 2 | . . . . 1 . 1 . ROAM 2 | . . . . 1 . 1 . Ally Attacks 59 | . . . . 53 . 6 . Total Damage 761 | . . . . 629 . 132 . Kills 5 | . . . . 5 . . . Allies Corrupted . | . . . . . . . . Allies Melted . | . . . . . . . . Intel | -11 -10 -9 -8 -8 -7 -6 -5 ------- Run | Yrd Mat Mat Mat Sto Fac Fac Fac Active Infowar (turns) 4197 | 1 497 1502 731 390 344 509 223 Sensors 3476 | . . 1502 731 390 344 509 . Seismic 498 | 1 497 . . . . . . Jamming 223 | . . . . . . . 223 Robot Analysis Total . | . . . . . . . . Derelict Logs Recovered . | . . . . . . . . Drone Launches . | . . . . . . . . Drone Recoveries . | . . . . . . . . Exploration | -11 -10 -9 -8 -8 -7 -6 -5 ------------- Run | Yrd Mat Mat Mat Sto Fac Fac Fac Turns Passed 5803 | 90 938 1507 757 944 621 560 386 Spaces Moved 5101 | 50 647 811 376 618 1355 928 316 Core 45 | 18 . . . . . 25 2 Treads 210 | 32 7 10 158 3 . . . Legs . | . . . . . . . . Wheels 2039 | . 640 801 218 380 . . . Hover . | . . . . . . . . Flight 2807 | . . . . 235 1355 903 314 Fastest Speed 16 | 50 100 115 115 98 20 16 29 Average Speed 77 | 130 109 119 155 109 21 38 90 Slowest Speed 550 | 160 240 250 250 170 23 550 200 Overloaded Moves 20 | . . . . . . 14 6 Propulsion Burnouts 1 | . . . . . . . 1 Robots Hopped 43 | . . . . . 15 28 . Potential Cave-ins . | . . . . . . . . Cave-ins Triggered . | . . . . . . . . Exploration Rate (%) 43 | 4 81 63 45 88 36 24 10 Regions Visited 7 Branch Regions 1 Pre-discovered Areas . | . . . . . . . . Known Exits Taken 5 | . . 1 1 1 1 1 . Unknown Exits Taken 2 | 1 1 . . . . . . Scrap Searched . | . . . . . . . . Spaces Dug 6 | . . . . . 2 4 . Terrain Destroyed 31 | . . . . . 25 6 . Melee . | . . . . . . . . Projectile 8 | . . . . . 2 6 . AOE 23 | . . . . . 23 . . Terrain Rammed . | . . . . . . . . Walls Destroyed . | . . . . . . . . Machines Disabled . | . . . . . . . . Actions | -11 -10 -9 -8 -8 -7 -6 -5 --------- Run | Yrd Mat Mat Mat Sto Fac Fac Fac Total 6490 | 70 792 1232 496 769 1662 1076 393 Wait 836 | 1 66 269 39 53 254 115 39 Move 5010 | 49 646 810 375 617 1324 873 316 Hop 41 | . . . . . 15 26 . Pick Up 101 | 10 15 30 14 11 11 5 5 Fast Attach 17 | 1 . 3 5 2 4 2 . Attach 37 | 6 5 8 2 3 3 2 8 Detach 5 | . . 1 . . 2 1 1 Swap 59 | . 3 13 14 10 11 8 . Drop 76 | . 2 28 18 12 14 2 . Fire 273 | 3 55 70 28 58 9 28 22 Melee . | . . . . . . . . Ram 3 | . . . 1 . . . 2 Kick . | . . . . . . . . Crush . | . . . . . . . . Escape Stasis 15 | . . . . . 15 . . Rewire 17 | . . . . 3 . 14 . Trap . | . . . . . . . . Miscellaneous . | . . . . . . . . Route ------- -11/Scrapyard -10/Materials (discovered 3 exits: *Mat x2 / [*Min]) -9/Materials (discovered 3 exits: *Mat x2 / *Min) -8/Materials (discovered 3 exits: *Fac / *Sto x2) -8/Storage -7/Factory (discovered 3 exits: *Fac x2 / *Low) -6/Factory (discovered 2 exits: *Fac x2) -5/Factory History --------- Turn | Location | Event 7 | -11/Scrapyard | Discovered new exit (range 16) 91 | -11/Scrapyard | Entered Materials 232 | -10/Materials | Discovered new exit (range 7) 300 | -10/Materials | Build established: Mutant 457 | -10/Materials | Discovered new exit (range 10) 599 | -10/Materials | Core integrity fell below 50% 848 | -10/Materials | Discovered new exit (range 4) 898 | -10/Materials | Core integrity fell below 20% 944 | -10/Materials | Lost 3 parts (1p1n1w) 1029 | -10/Materials | Entered another Materials area 1029 | -9/Materials | Accompanied by 1 ally 1029 | -9/Materials | Evolved 2 slots: Propulsion x1, Utility x1 1305 | -9/Materials | Repaired Lgt. Ion Engine 1333 | -9/Materials | Repaired Com. Wheel 1367 | -9/Materials | Repaired VTOL Module 1477 | -9/Materials | Discovered new exit (range 6) 1482 | -9/Materials | Identified exit to Mines 1835 | -9/Materials | Discovered new exit (range 16) 2209 | -9/Materials | Discovered new exit (range 8) 2216 | -9/Materials | Identified exit to Materials 2294 | -9/Materials | Repaired Lgt. Treads 2536 | -9/Materials | Entered another Materials area 2536 | -8/Materials | Evolved 2 slots: Propulsion x1, Utility x1 2649 | -8/Materials | Repaired Sensor Array 2810 | -8/Materials | Discovered new exit (range 8) 3042 | -8/Materials | Discovered new exit (range 4) 3249 | -8/Materials | Discovered new exit (range 14) 3292 | -8/Materials | Identified exit to Storage 3293 | -8/Materials | Entered Storage 3533 | -8/Storage | Found Prototype Processor 3586 | -8/Storage | Identified Exp. Targeting Computer 4053 | -8/Storage | Assisted by bots powering up and referring to "LRC-V3" 4222 | -8/Storage | Discovered new exit (range 16) 4232 | -8/Storage | Lost 3 allies 4236 | -8/Storage | Identified exit to Factory 4237 | -8/Storage | Entered Factory 4237 | -7/Factory | Evolved 2 slots: Propulsion x2 4332 | -7/Factory | Discovered new exit (range 9) 4540 | -7/Factory | Build established: Sprinter 4543 | -7/Factory | Discovered new exit (range 7) 4546 | -7/Factory | Identified exit to Factory 4592 | -7/Factory | Discovered new exit (range 12) 4693 | -7/Factory | Identified exit to Lower Caves 4858 | -7/Factory | Entered another Factory area 4858 | -6/Factory | Evolved 2 slots: Utility x2 4969 | -6/Factory | Discovered new exit (range 6) 4970 | -6/Factory | Identified exit to Factory 5250 | -6/Factory | Repaired Surge Thruster 5383 | -6/Factory | Repaired Xenon Bombardment Thruster? 5409 | -6/Factory | Discovered exit to Factory (range 14) 5418 | -6/Factory | Entered another Factory area 5418 | -5/Factory | Evolved 2 slots: Power x1, Utility x1 5431 | -5/Factory | Lost 5 parts (1p2n2u) 5635 | -5/Factory | Spotted B-75 Beast 5711 | -5/Factory | Build established: Mutant 5785 | -5/Factory | Core integrity fell below 50% 5801 | -5/Factory | Core integrity fell below 20% 5804 | -5/Factory | Destroyed by G-50 Soldier with Heavy Laser Last Messages --------------- 05780_ Slammed into P-70 Sage. 05780_ Transmission Jammer destroyed. 05781_ Acquired 22 matter. 05781_ Slammed into Y-64 Sentinel. 05782_ R-10 Processor collects VTOL Module+. 05783_ Penetrated by Slug. 05785_ Slug penetrates P-70 Sage. 05786_ R-10 Processor collects Imp. Deuterium Engine. 05786_ Cld. VTOL Module destroyed. 05786_ Cld. VTOL Module burned out. 05791_ M-28 Smith repairs L-41 Fighter Carbon-fiber Leg. 05799_ Penetrated by Slug. 05801_ M-28 Smith repairs L-41 Fighter Microactuators. 05802_ Penetrated by Slug. 05803_ M-28 Smith repairs L-41 Fighter Carbon-fiber Leg. Map ----- +----------------------------------------------------+ | ?????????????????????????????????????????????????? | | ?????????????????????????????????????????????????? | | ?????????????????????????????????????????????????? | | ?????????????????????????????????????????????????? | | ?????????????????????????????????????????????????? | | ?????????????????????????????????????????????????? | | ?????????????????????????????????????????????????? | | ?????????????????????????????????????????????????? | | ?????????????????????????????????????????????????? | | ?????????????????????????????????????????????????? | | ?????????????????????????????????????????????????? | | ?????????????????????????????????????????????????? | | ?????????????????????????????????????????????????? | | ?????????????????????????????????????????????????? | | ?????????????????????????????????????????????????? | | ?????????????????????????????????????????????????? | | ?????????????????????????????????????????????????? | | ?????????????????????????????????????????????????? | | ?????????????????????????????????????????????????? | | ??????????????????##########?????????????????????? | | ?????????????????? #?????????????????????? | | ?????????????????? #?????????????????????? | | ????????????????? #?????????????????????? | | ????????????????""""%""" #?????????????????????? | | ??????????????# """"%"""" #?????????????????????? | | ??????????????# """"p""""@!#?????????????????????? | | ??????????????+ """"%"" "gl#?????????????????????? | | ??????????????# """" " ms#?????????????????????? | | ??????????????# """" ""p Y#?????????????????????? | | ??????????????# """" """ #?????????????????????? | | ??????????????# % #?????????????????????? | | ??????????????# % #?????????????????????? | | ??????????????####+#########?????????????????????? | | ?????????????????# #?????????????????????????????? | | ????????? ???????# #?????????????????????????????? | | ????????# ????# #?????????????????????????????? | | ???????## #### ##############????????????????? | | ???? ??????????????? | | ???? ####?????????????????????? | | ???? #????????????????????????? | | ????? #????????????????????????? | | ????? #????????????????????????? | | ??????####+######+#####+#####????????????????????? | | ???????????????# #????????????????????? | | ???????????????# """"""""" #????????????????????? | | ???????????????# #????????????????????? | | ???????????????# """"""""" #????????????????????? | | ???????????????# #????????????????????? | | ???????????????# #????????????????????? | | ???????????????# """ #????????????????????? | +----------------------------------------------------+ Best States ------------- Heat Dissipation 51 Energy Generation 18 Energy Capacity 310 Matter Stores 300 Matter Capacity 300 Sight Range 16 Robot Scan Range 15 Terrain Scan Density 10 Jamming Range 12 Armor Coverage 225 Evasion (%) 76 Targeting Accuracy 12 Recoil Reduction 3 Offensive Hacking 10 Defensive Hacking 12 Item Schematics ----------------- VTOL Module | -9/Materials | Scanalyzed Arm. Treads | -9/Materials | Scanalyzed Lgt. Armor Plating | -9/Materials | Scanalyzed Spread Laser | -9/Materials | Scanalyzed Robot Schematics ------------------ K-01 Serf | -8/Storage | Hacked Fabricated ------------ Nothing Repaired ---------- Lgt. Ion Engine | 37% | -9/Materials Com. Wheel | 30% | -9/Materials VTOL Module | 44% | -9/Materials Lgt. Treads | 36% | -9/Materials Sensor Array | 55% | -8/Materials Surge Thruster | 54% | -6/Factory Xenon Bombardment Thruster | 23% | -6/Factory Studied --------- VTOL Module | -9/Materials | Hacked Spread Laser | -9/Materials | Hacked Alien Tech Used ----------------- None Achievements -------------- Dodgeball, But With Guns Challenges ------------ None Game ------ Seed HardlightCoreAxe Manual? 0 Play Time 01:08:38 Cumulative 90.9 hours Start 2026.01.01 @ 11:52:25 End 2026.01.01 @ 13:00:02 Sessions 1 Manual Loads 0 Difficulty Rogue Special Mode None Game No. 148 Rogue 122 Adventurer 20 Explorer 6 Win Type - Total 1 Types 0/0/0/1/0/0/0/0/0/0 Lore% 56 Gallery% 46 Achievement% 38 Wizard Run 0 Options --------- Layout 1 ASCII 0 Keyboard 0 Movement Numpad Keybinds 0 Fullscreen 2 Font 24/Smallcaps Map View 50x35 Zoom Use 0% Tactical HUD 1 Map Filters NONE Filters NONE Steam 1 RUN: 04378716-78b7-43ad-98eb-c26b054790b9